fUST/lending_fUST_20250801
["ID","MTS","AMOUNT","RATE_DAILY","PERIOD"]
[376546803,1754015438550,-460.0,0.00022302,2]
[376546804,1754015438559,-1138.32,0.00022302,2]
[376546805,1754015438570,-460.0,0.00022302,2]
[376546806,1754015438579,-460.0,0.00022302,2]
[376546807,1754015438588,-460.0,0.00022302,2]
[376546808,1754015438597,-3043.61,0.00022302,2]
[376546809,1754015438606,-460.0,0.00022302,2]
[376546810,1754015438616,-460.0,0.00022302,2]
[376546811,1754015438625,-460.0,0.00022302,2]
[376546812,1754015438634,-460.0,0.00022302,2]
[376546813,1754015438645,-460.0,0.00022302,2]
[376546814,1754015438654,-460.0,0.00022302,2]
[376546815,1754015438663,-526.3,0.00022302,2]
[376546816,1754015438672,-509.71,0.00022303,2]
[376546817,1754015438682,-460.0,0.00022303,2]
[376546818,1754015438691,-524.28688452,0.00022303,2]
[376546819,1754015438700,-850.17,0.00022303,2]
[376546820,1754015438709,-460.0,0.00022303,2]
[376546821,1754015438718,-460.0,0.00022303,2]
[376546822,1754015438727,-460.0,0.00022303,2]
[376546823,1754015438736,-460.0,0.00022303,2]
[376546824,1754015438745,-460.0,0.00022303,2]
[376546825,1754015438754,-460.0,0.00022303,2]
[376546826,1754015438763,-973.45,0.00022303,2]
[376546827,1754015438772,-460.0,0.00022303,2]
[376546828,1754015438781,-500.0,0.00022368,2]
[376546829,1754015438790,-200.0,0.00022368,2]
[376546830,1754015438799,-460.0,0.00022377,2]
[376546831,1754015438809,-1003.79,0.00022381,2]
[376546832,1754015438818,-460.0,0.00022381,2]
[376546833,1754015438827,-3019.483987,0.00022387,2]
[376546834,1754015438835,-407.04332536,0.00022387,2]
[376546835,1754015438845,-460.0,0.00022387,2]
[376546836,1754015438854,-1517.23,0.00022387,2]
[376546837,1754015438863,-460.0,0.00022387,2]
[376546838,1754015438872,-460.0,0.00022387,2]
[376546839,1754015438881,-460.0,0.00022387,2]
[376546840,1754015438890,-708.95,0.00022387,2]
[376546841,1754015438899,-460.0,0.00022387,2]
[376546842,1754015438908,-460.0,0.00022387,2]
[376546843,1754015438917,-500.94,0.00022387,2]
[376546844,1754015438927,-460.0,0.00022387,2]
[376546845,1754015438936,-929.31,0.00022387,2]
[376546846,1754015438945,-624.95,0.00022387,2]
[376546847,1754015438954,-4866.69867876,0.000224,2]
[376546848,1754015438973,-460.0,0.00022412,2]
[376546849,1754015438984,-460.0,0.00022412,2]
[376546850,1754015438994,-497.87,0.00022418,2]
[376546851,1754015439003,-460.0,0.00022419,2]
[376546852,1754015439013,-460.0,0.00022419,2]
[376546853,1754015439022,-460.0,0.00022419,2]
[376546854,1754015439031,-460.0,0.00022419,2]
[376546855,1754015439041,-4250.58,0.00022429,2]
[376546856,1754015439050,-782.91,0.00022429,2]
[376546857,1754015439059,-1133.72,0.00022429,2]
[376546858,1754015439068,-367.56,0.0002248,10]
[376546859,1754015439078,-851.71328035,0.00022489,2]
[376546860,1754015439087,-851.71328035,0.00022489,2]
[376546861,1754015439096,-471.30055573,0.00022489,2]
[376546862,1754015439106,-851.71328035,0.00022489,2]
[376546863,1754015439115,-851.71328035,0.00022489,2]
[376546864,1754015439125,-851.71328035,0.00022489,2]
[376546865,1754015439134,-851.71328035,0.00022489,2]
[376546866,1754015439143,-851.71328035,0.00022489,2]
[376546867,1754015439152,-851.71328035,0.00022489,2]
[376546868,1754015439162,-851.71328035,0.00022489,2]
[376546869,1754015439171,-474.75034676,0.00022489,2]
[376547211,1754015442996,-376.96293359,0.00022489,2]
[376547213,1754015443005,-851.71328035,0.00022489,2]
[376547215,1754015443015,-851.71328035,0.00022489,2]
[376547217,1754015443024,-851.71328035,0.00022489,2]
[376547219,1754015443033,-851.71328035,0.00022489,2]
[376547221,1754015443043,-851.71328035,0.00022489,2]
[376547223,1754015443053,-851.71328035,0.00022489,2]
[376547225,1754015443064,-851.71328035,0.00022489,2]
[376547227,1754015443073,-851.71328035,0.00022489,2]
[376547229,1754015443082,-851.71328035,0.00022489,2]
[376547231,1754015443091,-851.71328035,0.00022489,2]
[376547233,1754015443100,-851.71328035,0.00022489,2]
[376547235,1754015443109,-851.71328035,0.00022489,2]
[376547237,1754015443118,-35430.52809833,0.0002249,7]
[376547239,1754015443129,-7990.10637397,0.0002249,7]
[376547242,1754015443141,-7498.05601783,0.0002249,7]
[376547244,1754015443152,-519.47999996,0.0002249,7]
[376547255,1754015443227,-289.54641168,0.0002249,7]
[376547464,1754015445947,-460.0,0.00020932,2]
[376547466,1754015445956,-460.0,0.00020932,2]
[376547468,1754015445966,-460.0,0.00021206,2]
[376547469,1754015445976,-369.39925266,0.0002148,2]
[376547473,1754015446006,-460.0,0.00021206,2]
[376547474,1754015446015,-90.60074734,0.0002148,2]
[376547476,1754015446025,-460.0,0.00021754,2]
[376547478,1754015446034,-129.40079294,0.0002194,2]
[376547480,1754015446045,-771.4533225,0.0002194,2]
[376547659,1754015448714,-526.24136694,0.0002194,2]
[376548378,1754015614719,2165.0,0.000274,120]
[376548380,1754015642880,1617.84792625,0.000274,120]
[376548390,1754016355191,-3270.4123977,0.00019406,6]
[376548391,1754016355716,-2760.5806902,0.00019661,2]
[376548392,1754016355738,-1000.0,0.00019764,2]
[376548393,1754016355759,-181.507977,0.00019903,2]
[376548394,1754016355783,-160.0,0.0002,3]
[376548395,1754016355804,-160.0,0.0002,3]
[376548396,1754016355825,-344.64914651,0.000203,2]
[376548397,1754016355853,-155.371492,0.00020385,6]
[376548398,1754016355875,-155.371492,0.00020678,6]
[376548399,1754016355897,-300.0,0.00020899,2]
[376548400,1754016355922,-172.0,0.00020899,2]
[376548401,1754016355944,-7247.9344815,0.000209,2]
[376548402,1754016355965,-1821.43,0.00020921,10]
[376548403,1754016355986,-1517.86,0.00020921,10]
[376548404,1754016356009,-460.0,0.00020927,2]
[376548405,1754016356030,-476.99346766,0.00020927,2]
[376548406,1754016356051,-460.0,0.00020927,2]
[376548407,1754016356072,-470.33665967,0.00020927,2]
[376548408,1754016356093,-463.96044795,0.00020927,2]
[376548409,1754016356114,-460.0,0.00020928,2]
[376548410,1754016356136,-460.0,0.00020928,2]
[376548411,1754016356157,-500.0,0.00020928,2]
[376548412,1754016356178,-460.0,0.00020928,2]
[376548413,1754016356203,-460.0,0.00020928,2]
[376548414,1754016356226,-460.0,0.00020928,2]
[376548415,1754016356248,-460.0,0.00020928,2]
[376548416,1754016356273,-460.0,0.00020928,2]
[376548417,1754016356295,-1134.3,0.00020928,2]
[376548418,1754016356317,-422.92284331,0.00020928,2]
[376548419,1754016356341,-2713.9,0.00020928,2]
[376548420,1754016356365,-1948.73,0.00020929,2]
[376548421,1754016356391,-460.0,0.00020929,2]
[376548422,1754016356413,-460.0,0.00020929,2]
[376548423,1754016356442,-534.0,0.00020929,2]
[376548424,1754016356466,-460.0,0.00020929,2]
[376548425,1754016356488,-460.0,0.00020929,2]
[376548426,1754016356512,-157.13563838,0.00020929,2]
[376548427,1754016356535,-1587.53,0.00020929,2]
[376548428,1754016356557,-460.0,0.00020929,2]
[376548429,1754016356580,-460.0,0.00020929,2]
[376548430,1754016356602,-460.0,0.00020929,2]
[376548431,1754016356623,-460.0,0.00020929,2]
[376548432,1754016356647,-460.0,0.00020929,2]
[376548433,1754016356672,-1427.93,0.00020929,2]
[376548434,1754016356695,-460.0,0.00020929,2]
[376548435,1754016356717,-460.0,0.00020929,2]
[376548436,1754016356739,-460.0,0.00020929,2]
[376548437,1754016356763,-460.0,0.00020929,2]
[376548438,1754016356786,-460.0,0.00020929,2]
[376548439,1754016356810,-460.0,0.00020929,2]
[376548440,1754016356833,-460.0,0.00020929,2]
[376548441,1754016356859,-478.49,0.00020929,2]
[376548442,1754016356882,-460.0,0.00020929,2]
[376548443,1754016356905,-460.0,0.00020929,2]
[376548444,1754016356928,-460.0,0.00020929,2]
[376548445,1754016356953,-460.0,0.00020929,2]
[376548446,1754016356976,-460.0,0.00020929,2]
[376548447,1754016357000,-460.0,0.0002093,2]
[376548448,1754016357026,-460.0,0.0002093,2]
[376548449,1754016357062,-573.17,0.0002093,2]
[376548450,1754016357088,-1024.38,0.0002093,2]
[376548451,1754016357110,-517.01413732,0.0002093,2]
[376548452,1754016357132,-460.0,0.0002093,2]
[376548453,1754016357153,-468.29253804,0.0002093,2]
[376548454,1754016357175,-485.81,0.0002093,2]
[376548455,1754016357200,-462.26603311,0.0002093,2]
[376548456,1754016357221,-466.81,0.00020931,2]
[376548457,1754016357241,-460.0,0.00020931,2]
[376548458,1754016357261,-460.0,0.00020931,2]
[376548459,1754016357283,-460.0,0.00020931,2]
[376548460,1754016357305,-460.0,0.00020931,2]
[376548461,1754016357327,-460.0,0.00020931,2]
[376548462,1754016357348,-460.0,0.00020931,2]
[376548463,1754016357372,-460.0,0.00020931,2]
[376548464,1754016357393,-469.80580821,0.00020931,2]
[376548465,1754016357417,-460.0,0.00020931,2]
[376548466,1754016357439,-460.0,0.00020931,2]
[376548467,1754016357460,-59.87086669,0.00020931,2]
[376548468,1754016358073,-400.12913331,0.00020931,2]
[376548469,1754016358094,-460.0,0.00020931,2]
[376548470,1754016358114,-460.0,0.00020931,2]
[376548471,1754016358136,-461.50127584,0.00020931,2]
[376548472,1754016358156,-496.72,0.00020931,2]
[376548473,1754016358178,-460.0,0.00020931,2]
[376548474,1754016358200,-460.0,0.00020931,2]
[376548475,1754016358221,-460.0,0.00020931,2]
[376548476,1754016358244,-203.11648751,0.00020931,2]
[376548477,1754016358265,-460.0,0.00020931,2]
[376548478,1754016358286,-460.0,0.00020931,2]
[376548479,1754016358438,-557.38374987,0.00020931,2]
[376548480,1754016358459,-460.0,0.00020931,2]
[376548481,1754016358480,-460.0,0.00020931,2]
[376548482,1754016358502,-460.0,0.00020931,2]
[376548483,1754016358523,-460.0,0.00020931,2]
[376548484,1754016358543,-460.0,0.00020931,2]
[376548485,1754016358565,-460.0,0.00020931,2]
[376548486,1754016358586,-467.42096561,0.00020931,2]
[376548487,1754016358611,-460.0,0.00020931,2]
[376548488,1754016358638,-460.0,0.00020931,2]
[376548489,1754016358658,-460.0,0.00020931,2]
[376548490,1754016358679,-457.96705291,0.00020931,2]
[376548491,1754016358703,-460.0,0.00020931,2]
[376548492,1754016358735,-460.0,0.00020931,2]
[376548493,1754016358757,-460.0,0.00020931,2]
[376548494,1754016358779,-460.0,0.00020931,2]
[376548495,1754016358810,-460.0,0.00020931,2]
[376548496,1754016358838,-460.0,0.00020931,2]
[376548497,1754016358871,-460.0,0.00020931,2]
[376548498,1754016358892,-460.0,0.00020931,2]
[376548499,1754016358914,-468.64089191,0.00020931,2]
[376548500,1754016358937,-420.34097992,0.00020931,2]
[376548501,1754016358960,-460.0,0.00020931,2]
[376548502,1754016358980,-460.0,0.00020931,2]
[376548503,1754016359001,-460.0,0.00020931,2]
[376548504,1754016359024,-460.0,0.00020931,2]
[376548505,1754016359045,-460.0,0.00020931,2]
[376548506,1754016359066,-460.0,0.00020931,2]
[376548507,1754016359087,-460.0,0.00020931,2]
[376548508,1754016359108,-466.09411442,0.00020931,2]
[376548509,1754016359129,-460.0,0.00020931,2]
[376548510,1754016359149,-469.51919945,0.00020931,2]
[376548511,1754016359170,-460.0,0.00020931,2]
[376548512,1754016359191,-465.02627879,0.00020931,2]
[376548513,1754016359212,-460.0,0.00020931,2]
[376548514,1754016359235,-467.17480172,0.00020931,2]
[376548515,1754016359257,-460.0,0.00020931,2]
[376548516,1754016359278,-460.0,0.00020931,2]
[376548517,1754016359300,-460.0,0.00020931,2]
[376548518,1754016359321,-504.85,0.00020931,2]
[376548519,1754016359345,-460.0,0.00020931,2]
[376548520,1754016359368,-484.89,0.00020931,2]
[376548521,1754016359388,-462.71621824,0.00020931,2]
[376548522,1754016359409,-561.56152873,0.00020931,2]
[376548523,1754016359430,-460.0,0.00020931,2]
[376548524,1754016359451,-231.78280721,0.00020931,2]
[376548525,1754016359471,-460.0,0.00020931,2]
[376548526,1754016359493,-460.0,0.00020931,2]
[376548527,1754016359512,-287.28308553,0.00020931,2]
[376548528,1754016359532,-460.0,0.00020931,2]
[376548529,1754016359553,-460.0,0.00020931,2]
[376548530,1754016359573,-460.0,0.00020931,2]
[376548531,1754016359594,-389.70941685,0.00020931,2]
[376548532,1754016359615,-460.0,0.00020931,2]
[376548533,1754016359636,-460.0,0.00020931,2]
[376548534,1754016359657,-462.96676887,0.00020931,2]
[376548535,1754016359676,-460.0,0.00020931,2]
[376548536,1754016359698,-549.29010082,0.00020931,2]
[376548537,1754016359717,-578.65440936,0.00020931,2]
[376548538,1754016359738,-785.14,0.00020931,2]
[376548539,1754016359758,-460.0,0.00020931,2]
[376548540,1754016359778,-460.0,0.00020931,2]
[376548541,1754016359799,-460.0,0.00020931,2]
[376548542,1754016359819,-460.0,0.00020931,2]
[376548543,1754016359841,-460.0,0.00020931,2]
[376548544,1754016359864,-460.0,0.00020931,2]
[376548545,1754016359886,-460.0,0.00020931,2]
[376548546,1754016359906,-460.0,0.00020931,2]
[376548547,1754016359928,-339.75625217,0.00020931,2]
[376548548,1754016359950,-460.81455457,0.00020931,2]
[376548549,1754016359971,-460.0,0.00020931,2]
[376548550,1754016359991,-465.88283365,0.00020931,2]
[376548551,1754016360011,-460.0,0.00020931,2]
[376548552,1754016360033,-500.0,0.00020931,2]
[376548553,1754016360055,-460.0,0.00020931,2]
[376548554,1754016360076,-460.0,0.00020931,2]
[376548555,1754016360097,-460.52552984,0.00020931,2]
[376548556,1754016360119,-460.24499832,0.00020931,2]
[376548557,1754016360140,-462.93964972,0.00020931,2]
[376548558,1754016360161,-460.0,0.00020931,2]
[376548559,1754016360183,-472.7944988,0.00020931,2]
[376548560,1754016360205,-507.50114449,0.00020931,2]
[376548561,1754016360227,-460.0,0.00020931,2]
[376548562,1754016360250,-460.0,0.00020931,2]
[376548563,1754016360270,-460.0,0.00020931,2]
[376548564,1754016360291,-460.0,0.00020931,2]
[376548565,1754016360311,-507.52676902,0.00020931,2]
[376548566,1754016360332,-460.0,0.00020931,2]
[376548567,1754016360354,-460.0,0.00020931,2]
[376548568,1754016360374,-460.0,0.00020931,2]
[376548569,1754016360394,-460.0,0.00020931,2]
[376548570,1754016360414,-460.0,0.00020931,2]
[376548571,1754016360434,-460.0,0.00020931,2]
[376548572,1754016360454,-460.0,0.00020931,2]
[376548573,1754016360474,-460.0,0.00020931,2]
[376548574,1754016360494,-460.0,0.00020931,2]
[376548575,1754016360514,-828.15,0.00020931,2]
[376548576,1754016360535,-460.0,0.00020931,2]
[376548577,1754016360556,-460.0,0.00020931,2]
[376548578,1754016360576,-461.63821429,0.00020931,2]
[376548579,1754016360598,-602.90907265,0.00020931,2]
[376548580,1754016360619,-460.0,0.00020932,2]
[376548581,1754016360639,-460.0,0.00020932,2]
[376548582,1754016360660,-217.09697227,0.00020932,2]
[376548583,1754016360681,-463.69107277,0.00020932,2]
[376548584,1754016360704,-443.45671922,0.00020932,2]
[376548585,1754016360725,-460.0,0.00020932,2]
[376548586,1754016360746,-460.0,0.00020932,2]
[376548587,1754016360768,-460.0,0.00020932,2]
[376548588,1754016360789,-460.0,0.00020932,2]
[376548589,1754016360811,-460.0,0.00020932,2]
[376548590,1754016360832,-460.0,0.00020932,2]
[376548591,1754016360857,-460.0,0.00020932,2]
[376548592,1754016360878,-231.35536185,0.00020932,2]
[376548593,1754016360900,-460.0,0.00020932,2]
[376548594,1754016360921,-460.0,0.00020932,2]
[376548595,1754016360943,-460.0,0.00020932,2]
[376548596,1754016360965,-471.67280416,0.00020932,2]
[376548597,1754016360987,-500.0,0.00020932,2]
[376548598,1754016361012,-350.0,0.00020932,2]
[376548599,1754016361034,-460.0,0.00020932,2]
[376548600,1754016361054,-460.0,0.00020932,2]
[376548601,1754016361075,-403.51076852,0.00020932,2]
[376548602,1754016361094,-500.01345688,0.00020933,2]
[376548603,1754016361114,-460.0,0.00020933,2]
[376548604,1754016361136,-1810.35,0.00020933,2]
[376548605,1754016361157,-581.20365635,0.00020933,2]
[376548606,1754016361178,-460.0,0.00020933,2]
[376548607,1754016361202,-155.371492,0.0002097,6]
[376548608,1754016361222,-500.0,0.00020973,2]
[376548609,1754016361242,-500.0,0.00020973,2]
[376548610,1754016361264,-1272.85,0.00021007,2]
[376548611,1754016361285,-399.66831598,0.00021007,2]
[376548612,1754016361306,-460.0,0.00021017,2]
[376548613,1754016361327,-177.94014089,0.00021017,2]
[376548616,1754016435494,258.635799,0.00013699,2]
[376548617,1754016439974,411.79588949,0.0001878,2]
[376548618,1754016447078,-229.76609768,0.000189,2]
[376548619,1754016447100,-5636.7896586,0.00020035,2]
[376548620,1754016447121,-258.635799,0.00020187,2]
[376548621,1754016447142,-155.11558809,0.00020831,2]
[376548622,1754016447163,-607.25536873,0.00020927,2]
[376548623,1754016447183,-471.39278254,0.00020927,2]
[376548624,1754016447203,-469.90531105,0.00020927,2]
[376548625,1754016447224,-460.0,0.00020927,2]
[376548626,1754016447245,-468.64419244,0.00020927,2]
[376548627,1754016447265,-242.1406088,0.00020927,2]
[376548628,1754016447286,-463.69649941,0.00020927,2]
[376548629,1754016447308,-505.64891094,0.00020927,2]
[376548630,1754016447328,-461.91875831,0.00020927,2]
[376548631,1754016447350,-467.41903618,0.00020927,2]
[376548632,1754016447370,-460.0,0.00020928,2]
[376548633,1754016447391,-466.90081081,0.00020928,2]
[376548634,1754016447412,-460.0,0.00020928,2]
[376548635,1754016447432,-460.0,0.00020928,2]
[376548636,1754016447455,-1867.54,0.00020928,2]
[376548637,1754016447475,-460.0,0.00020928,2]
[376548638,1754016447497,-466.94650628,0.00020928,2]
[376548639,1754016447518,-460.0,0.00020928,2]
[376548640,1754016447538,-576.41110111,0.00020928,2]
[376548641,1754016447559,-460.0,0.00020928,2]
[376548642,1754016447580,-460.0,0.00020928,2]
[376548643,1754016447602,-526.62883312,0.00020928,2]
[376548644,1754016447624,-1521.38,0.00020928,2]
[376548645,1754016447646,-460.0,0.00020929,2]
[376548646,1754016447667,-227.46118886,0.00020929,2]
[376548647,1754016449082,-460.0,0.00020928,2]
[376548648,1754016449104,-243.40577925,0.00020929,2]
[376548649,1754016449124,-474.41866707,0.00020929,2]
[376548650,1754016449144,-460.0,0.00020929,2]
[376548651,1754016449164,-460.0,0.00020929,2]
[376548652,1754016449185,-460.0,0.00020929,2]
[376548653,1754016449206,-460.0,0.00020929,2]
[376548654,1754016449228,-511.75,0.00020929,2]
[376548655,1754016449250,-609.96,0.00020929,2]
[376548656,1754016449275,-460.0,0.00020929,2]
[376548657,1754016449297,-210.21964142,0.00020929,2]
[376548658,1754016449321,-460.0,0.00020929,2]
[376548659,1754016449343,-465.8,0.00020929,2]
[376548660,1754016449365,-460.0,0.00020929,2]
[376548661,1754016449386,-460.0,0.0002093,2]
[376548662,1754016449407,-468.64344321,0.00020931,2]
[376548663,1754016449427,-460.0,0.00020931,2]
[376548664,1754016449447,-460.0,0.00020931,2]
[376548665,1754016449468,-460.0,0.00020931,2]
[376548666,1754016449489,-460.0,0.00020931,2]
[376548667,1754016449510,-460.0,0.00020932,2]
[376548668,1754016449533,-1306.28220083,0.00020932,2]
[376548669,1754016453116,-460.0,0.00020931,2]
[376548670,1754016453147,-2390.83779917,0.00020932,2]
[376548671,1754016453175,-1219.82,0.00020933,2]
[376548672,1754016453203,-460.0,0.00021007,2]
[376548673,1754016453229,-460.0,0.00021017,2]
[376548674,1754016453255,-460.0,0.00021017,2]
[376548675,1754016453283,-460.0,0.00021017,2]
[376548676,1754016453308,-151.60766587,0.00021017,2]
[376548677,1754016453332,-463.45281503,0.00021017,2]
[376548678,1754016453358,-460.0,0.00021017,2]
[376548679,1754016453382,-460.0,0.00021017,2]
[376548680,1754016453406,-460.0,0.00021017,2]
[376548681,1754016453433,-731.3,0.00021017,2]
[376548682,1754016453458,-460.0,0.00021017,2]
[376548683,1754016453484,-460.0,0.00021017,2]
[376548684,1754016453512,-1024.2,0.00021017,2]
[376548685,1754016453537,-853.52,0.00021017,2]
[376548686,1754016453682,-549.29,0.00021017,2]
[376548687,1754016453710,-460.0,0.00021018,2]
[376548688,1754016453735,-460.0,0.00021018,2]
[376548689,1754016453760,-500.0,0.00021035,2]
[376548690,1754016453785,-240.24321025,0.00021101,2]
[376548691,1754016453817,-161.29,0.00021193,3]
[376548692,1754016453845,-483.91,0.00021193,3]
[376548693,1754016453868,-1264.88,0.00021197,10]
[376548694,1754016453898,-1054.07,0.00021197,10]
[376548695,1754016453923,-460.0,0.00021201,2]
[376548696,1754016453947,-470.03294425,0.00021201,2]
[376548697,1754016453973,-460.0,0.00021202,2]
[376548698,1754016453999,-214.94938126,0.00021202,2]
[376548699,1754016454030,-460.0,0.00021202,2]
[376548700,1754016454058,-460.0,0.00021202,2]
[376548701,1754016454083,-460.0,0.00021202,2]
[376548702,1754016454116,-460.0,0.00021202,2]
[376548703,1754016454144,-1134.3,0.00021202,2]
[376548704,1754016454175,-2713.9,0.00021202,2]
[376548705,1754016454202,-460.0,0.00021202,2]
[376548706,1754016454227,-460.0,0.00021202,2]
[376548707,1754016454253,-460.0,0.00021202,2]
[376548708,1754016454283,-1867.54,0.00021202,2]
[376548709,1754016454305,-491.04038707,0.00021202,2]
[376548710,1754016454328,-460.0,0.00021202,2]
[376548711,1754016454352,-460.0,0.00021202,2]
[376548712,1754016454377,-1521.38,0.00021202,2]
[376548713,1754016454400,-460.0,0.00021202,2]
[376548714,1754016454423,-460.0,0.00021203,2]
[376548715,1754016454446,-1427.93,0.00021203,2]
[376548716,1754016454476,-460.0,0.00021203,2]
[376548717,1754016454500,-460.0,0.00021203,2]
[376548718,1754016454521,-460.0,0.00021203,2]
[376548719,1754016454545,-460.0,0.00021203,2]
[376548720,1754016454567,-460.0,0.00021203,2]
[376548721,1754016454588,-460.0,0.00021203,2]
[376548722,1754016454611,-460.0,0.00021203,2]
[376548723,1754016454645,-478.49,0.00021203,2]
[376548724,1754016454671,-460.0,0.00021203,2]
[376548725,1754016454693,-460.0,0.00021203,2]
[376548726,1754016454714,-460.0,0.00021203,2]
[376548727,1754016454736,-460.0,0.00021203,2]
[376548728,1754016454758,-460.0,0.00021203,2]
[376548729,1754016454781,-460.0,0.00021203,2]
[376548730,1754016454802,-460.0,0.00021203,2]
[376548731,1754016454823,-460.0,0.00021203,2]
[376548732,1754016454845,-460.0,0.00021203,2]
[376548733,1754016454870,-511.75,0.00021203,2]
[376548734,1754016454895,-335.59085183,0.00021203,2]
[376548737,1754016568127,-460.0,0.00020927,2]
[376548738,1754016568657,-460.0,0.00020927,2]
[376548739,1754016568678,-475.28355962,0.00020927,2]
[376548740,1754016568700,-469.66720125,0.00020927,2]
[376548741,1754016568721,-300.0,0.00020927,2]
[376548742,1754016568740,-461.88098504,0.00020927,2]
[376548743,1754016568761,-345.2016925,0.00020927,2]
[376548744,1754016568782,-460.0,0.00020928,2]
[376548745,1754016568804,-981.7,0.00020928,2]
[376548746,1754016568826,-460.0,0.00020928,2]
[376548747,1754016568846,-460.0,0.00020928,2]
[376548748,1754016568869,-1308.94,0.00020928,2]
[376548749,1754016568891,-244.40463274,0.00020928,2]
[376548750,1754016568916,-460.0,0.00020928,2]
[376548751,1754016568937,-514.74903726,0.00020928,2]
[376548752,1754016568960,-460.0,0.00020928,2]
[376548753,1754016568985,-460.0,0.00020928,2]
[376548754,1754016569007,-460.0,0.00020928,2]
[376548755,1754016569029,-460.0,0.00020929,2]
[376548756,1754016569050,-460.0,0.00020929,2]
[376548757,1754016569073,-460.0,0.00020929,2]
[376548758,1754016569095,-460.0,0.00020929,2]
[376548759,1754016569118,-460.0,0.00020929,2]
[376548760,1754016569139,-460.0,0.00020929,2]
[376548761,1754016569161,-209.89,0.00020929,2]
[376548762,1754016569182,-460.0,0.00020929,2]
[376548763,1754016569208,-460.0,0.00020929,2]
[376548764,1754016569230,-460.0,0.00020929,2]
[376548765,1754016569253,-817.95,0.00020929,2]
[376548766,1754016569276,-1319.65,0.0002093,2]
[376548767,1754016569297,-460.0,0.0002093,2]
[376548768,1754016569320,-460.0,0.0002093,2]
[376548769,1754016569340,-460.0,0.0002093,2]
[376548770,1754016569360,-465.0951396,0.00020931,2]
[376548771,1754016569380,-460.0,0.00020931,2]
[376548772,1754016569400,-460.0,0.00020931,2]
[376548773,1754016569420,-460.0,0.00020931,2]
[376548774,1754016569444,-494.69,0.00020931,2]
[376548775,1754016569464,-460.0,0.00020931,2]
[376548776,1754016569486,-700.83,0.00020932,2]
[376548777,1754016569507,-460.0,0.00021007,2]
[376548778,1754016569529,-460.0,0.00021007,2]
[376548779,1754016569548,-460.78005074,0.00021016,2]
[376548780,1754016569568,-463.19046603,0.00021016,2]
[376548781,1754016569591,-460.0,0.00021016,2]
[376548782,1754016569612,-460.0,0.00021016,2]
[376548783,1754016569635,-1039.77,0.00021016,2]
[376548784,1754016569656,-465.57,0.00021017,2]
[376548785,1754016569677,-460.0,0.00021017,2]
[376548786,1754016569698,-1584.05,0.00021017,2]
[376548787,1754016569718,-460.0,0.00021017,2]
[376548788,1754016569738,-460.0,0.00021201,2]
[376548789,1754016569758,-475.60735266,0.00021201,2]
[376548790,1754016569778,-460.0,0.00021202,2]
[376548791,1754016569802,-981.7,0.00021202,2]
[376548792,1754016569822,-460.0,0.00021202,2]
[376548793,1754016569844,-1308.94,0.00021202,2]
[376548794,1754016569864,-460.0,0.00021202,2]
[376548795,1754016569886,-460.0,0.00021202,2]
[376548796,1754016569919,-460.0,0.00021202,2]